Cogmind - Beta 9.5 @@@ ROGUE MODE // 2020.04.12 @ 23:00:50 Player: l1quidcryst4l Result: Destroyed by G-34 Mercenary with Small Laser Performance ------------- Evolutions (0) 0 Regions Visited (1) 200 Robots Destroyed (26) 130 Value Destroyed (373) 373 Prototype IDs (0) 0 Alien Tech Used (0) 0 Bonus (0) 0 TOTAL SCORE: 703 Bonus ------- None Cogmind --------- Core Integrity 0/250 Matter 294/300 Energy 124/125 System Corruption 2% Temperature Cool (6) Movement Core (650) Ox12 Location -10/Materials Parts ------- > --- POWER (1) -------- Light Ion Engine > --- PROPULSION (2) --- Flight Unit > --- UTILITY (2) ------ High-capacity Storage Unit Core Shielding > --- WEAPON (2) ------- Light Assault Rifle > --- INVENTORY (12) --- Flight Unit Structural Scanner Terrain Scanner Terrain Scan Processor Peak State ------------ > --- POWER ------------ Light Ion Engine > --- PROPULSION ------- Flight Unit Flight Unit > --- UTILITY ---------- Structural Scanner Terrain Scanner > --- WEAPON ----------- Small Laser Light Assault Rifle > --- INVENTORY -------- Wheel Terrain Scan Processor [Rating: 7] Favorites ----------- Power Light Ion Engine Engine Light Ion Engine Propulsion Wheel Wheel Wheel Flight Unit Flight Unit Utility High-capacity Storage Unit Device Structural Scanner Storage High-capacity Storage Unit Processor Signal Interpreter Protection Core Shielding Weapon Light Assault Rifle Energy Gun Small Laser Ballistic Gun Light Assault Rifle Launcher Grenade Launcher Special Weapon Welding Torch Build | -11 -10 ------- Run | Scr Mat Slots Evolved . | . . Power . | . . Propulsion . | . . Utility . | . . Weapon . | . . Parts Attached 28 | 5 23 Power 5 | 1 4 Engine 5 | 1 4 Core . | . . Reactor . | . . Propulsion 6 | 2 4 Treads . | . . Leg . | . . Wheel 3 | 2 1 Hover . | . . Flight 3 | . 3 Utility 6 | . 6 Device 2 | . 2 Storage 2 | . 2 Processor 1 | . 1 Hackware . | . . Protection 1 | . 1 Artifact . | . . Weapon 11 | 2 9 Energy Gun 6 | 2 4 Energy Cannon . | . . Ballistic Gun 2 | . 2 Ballistic Cannon . | . . Launcher 2 | . 2 Special Weapon 1 | . 1 Impact Weapon . | . . Slashing Weapon . | . . Piercing Weapon . | . . Special Melee Weapon . | . . Unidentified Prototypes . | . . Parts Lost 13 | . 13 Power 1 | . 1 Propulsion 3 | . 3 Utility 2 | . 2 Weapon 7 | . 7 Highest Loss Streak 8 | . 8 Average Slot Usage (%) 76 | . 76 Engine 13 | . 13 Wheel 9 | . 9 Flight 11 | . 11 Device 1 | . 1 Storage 9 | . 9 Processor 1 | . 1 Protection 7 | . 7 Energy Gun 6 | . 6 Ballistic Gun 11 | . 11 Launcher 1 | . 1 Naked Turns 1 | . 1 Heaviest Build 38 | 6 38 Greatest Support 20 | 20 20 Greatest Overweight (x) 12 | . 12 Average Overweight (x) 1 | . 2 Largest Inventory Capacity 12 | 4 12 Average Capacity 8 | 4 9 Most Carried 5 | 3 5 Average Carried 3 | 2 3 Final Capacity 12 | 4 12 Final Carried 4 | 3 4 Class Distribution -------------------- 64% | Mutant 35% | Scavenger-Mutant Dominant Class ---------------- Mutant | -10/Materials Resources | -11 -10 ----------- Run | Scr Mat Matter Collected 519 | 250 269 Remotely . | . . Salvage Created 498 | 64 434 Parts 47 | 3 44 Haulers Intercepted . | . . Recyclers Shooed 6 | . 6 Parts Field Recycled . | . . Retrieved Matter . | . . Parts Self-Destructed . | . . Prevented . | . . Kills | -11 -10 ------- Run | Scr Mat Combat Hostiles Destroyed 15 | 1 14 Melee 1 | . 1 Guns 9 | 1 8 AOE 5 | . 5 Classes Destroyed 8 | 2 6 Worker 3 | 1 2 Builder 3 | . 3 Tunneler 1 | . 1 Recycler 1 | . 1 Operator 1 | . 1 Watcher 2 | . 2 Swarmer 9 | . 9 Grunt 6 | 1 5 Best Kill Streak 7 | 1 7 Combat Bots Only 4 | 1 4 Max Kills in Single Turn 3 | 1 3 Gunslinging . | . . Exploded 2 | . 2 Melee 1 | . 1 Uniques/NPCs Destroyed . | . . Combat | -11 -10 -------- Run | Scr Mat Damage Taken 862 | 111 751 Core 259 | 24 235 Absorbed by Shields . | . . Core Remaining (%) 90 | 90 . Volleys Fired 76 | 10 66 Largest 2 | 2 2 Hottest 90 | 90 80 Shots Fired 117 | 20 97 Gun 105 | 20 85 Cannon . | . . Launcher 7 | . 7 Special 5 | . 5 Kinetic 50 | . 50 Thermal 60 | 20 40 Explosive 7 | . 7 Electromagnetic . | . . Robot Hit Streak 6 | 6 6 Robot Miss Streak 5 | 2 5 Penetration Max . | . . Secondary Targets . | . . Shots Hit Robots 56 | 10 46 Core Hits 42 | 3 39 Critical Hits 2 | . 2 Critical Kills 1 | . 1 Critical Parts Destroyed 1 | . 1 Melee Attacks . | . . Impact . | . . Slashing . | . . Piercing . | . . Sneak Attacks . | . . Combat Hostiles . | . . Follow-up Attacks . | . . Damage Inflicted 1210 | 128 1082 Guns 530 | 128 402 Cannons . | . . Explosions 660 | . 660 Melee . | . . Ramming 6 | . 6 Kinetic 170 | . 170 Thermal 374 | 128 246 Explosive 660 | . 660 Electromagnetic . | . . Impact . | . . Slashing . | . . Piercing . | . . Highest Corruption 2 | . 2 Average Corruption 2 | . 2 Corruption Purged . | . . Effects 12 | . 12 Message Errors 1 | . 1 Heat Flow Errors 2 | . 2 Energy Discharges 2 | . 2 Targeting Errors 5 | . 5 Weapon Failures 2 | . 2 Overload Shots . | . . Overflow Damage 32 | . 32 Projectiles . | . . Explosions 32 | . 32 Melee . | . . Knockbacks . | . . Impact . | . . Kinetic . | . . Secondary . | . . Self-Inflicted Damage 86 | . 86 Shots 3 | . 3 Rammed 3 | . 3 Targets Rammed 3 | . 3 Kicked . | . . Crushed . | . . Highest Temperature 266 | 244 266 Average Temperature 69 | 102 59 Received Heat Transfer 138 | 60 78 Effects 1 | 1 . Energy Bleed 1 | 1 . Siege Activations . | . . Robots Corrupted . | . . Combat Hostiles . | . . Parts Fried . | . . Impact Corruptions . | . . Robots Melted . | . . Combat Hostiles . | . . Parts Melted 1 | 1 . Heat Transferred 983 | 347 636 Parts Sabotaged . | . . Parts Stolen . | . . Parts Stripped . | . . Power Chain Reactions . | . . Missiles Intercepted . | . . Alert | -11 -10 ------- Run | Scr Mat Peak Influence 280 | 25 280 Average Influence 115 | 2 142 Maximum Alert Level 1 | . 1 Low Security (%) 75 | 100 68 Level 1 25 | . 31 Level 2 . | . . Level 3 . | . . Level 4 . | . . Level 5 . | . . High Security . | . . Max Security . | . . Squads Dispatched 3 | . 3 Investigation 1 | . 1 Extermination . | . . Reinforcement 2 | . 2 Assault . | . . Garrison . | . . Intercept . | . . Construction Impeded . | . . Haulers Reinforced . | . . Stealth | -11 -10 --------- Run | Scr Mat Distress Signals 1 | . 1 Communications Jammed . | . . Distress Signals . | . . Times Spotted 24 | 1 23 Peak Tracking Total 5 | 1 5 Tactical Retreats . | . . Traps | -11 -10 ------- Run | Scr Mat Traps Triggered 1 | . 1 Indirectly . | . . Trap Hack Attempts . | . . Triggered . | . . Disarmed . | . . Reprogrammed . | . . Reused . | . . Traps Extracted . | . . Installed . | . . Triggered . | . . Machines | -11 -10 ---------- Run | Scr Mat Machines Disabled . | . . Max in Single Turn . | . . Machines Sabotaged . | . . Garrisons Compromised . | . . Overloaded Fab Kills . | . . Fab Network Shutdowns . | . . Hacking | -11 -10 --------- Run | Scr Mat Machines Accessed 1 | . 1 Terminals 1 | . 1 Fabricators . | . . Repair Stations . | . . Recycling Units . | . . Scanalyzers . | . . Garrison Access . | . . Total Hacks 2 | . 2 Successful 2 | . 2 Failed . | . . Catastrophic . | . . Database Lockouts . | . . Manual . | . . Terminals 2 | . 2 Fabricators . | . . Repair Stations . | . . Recycling Units . | . . Scanalyzers . | . . Garrison Access . | . . Terminal Hacks 2 | . 2 Emergency Access Points 1 | . 1 Zone Layout 1 | . 1 Fabricator Hacks . | . . Repair Station Hacks . | . . Recycling Unit Hacks . | . . Scanalyzer . | . . Garrison Access Hacks . | . . Unauthorized Hacks . | . . Terminals . | . . Fabricators . | . . Repair Stations . | . . Recycling Units . | . . Scanalyzers . | . . Garrison Access . | . . Data Cores Recovered . | . . Used . | . . Hacking Detections . | . . Full Trace Events . | . . Feedback Events . | . . Feedback Blocked . | . . Robot Schematics Acquired . | . . Robots Built . | . . Matter . | . . Time . | . . Total Robot Build Rating . | . . Part Schematics Acquired . | . . Parts Built . | . . Matter . | . . Time . | . . Total Part Build Rating . | . . Parts Repaired . | . . Time . | . . Parts Recycled . | . . Recycled Matter . | . . Retrieved Matter . | . . Retrieved Components . | . . Parts Scanalyzed . | . . Part Schematics Acquired . | . . Parts Damaged . | . . Bothacking | -11 -10 ------------ Run | Scr Mat Used RIF Installer . | . . Robots Hacked . | . . Non-combat . | . . Combat . | . . Robot Hacks Applied . | . . Relay Couplers Released . | . . Robots Rewired . | . . Allies Hacked . | . . Hacks Repelled . | . . Allies | -11 -10 -------- Run | Scr Mat Total Allies . | . . Largest Group . | . . Highest-Rated Group . | . . Highest-Rated Ally . | . . Total Orders . | . . Ally Attacks . | . . Total Damage . | . . Kills . | . . Allies Corrupted . | . . Allies Melted . | . . Intel | -11 -10 ------- Run | Scr Mat Robot Analysis Total . | . . Derelict Logs Recovered . | . . Drone Launches . | . . Drone Recoveries . | . . Exploration | -11 -10 ------------- Run | Scr Mat Turns Passed 712 | 139 573 Spaces Moved 397 | 131 266 Core 55 | 23 32 Treads . | . . Legs . | . . Wheels 277 | 108 169 Hover . | . . Flight 65 | . 65 Fastest Speed 37 | 50 37 Average Speed 117 | 74 138 Slowest Speed 650 | 80 650 Overloaded Moves . | . . Propulsion Burnouts . | . . Robots Hopped 2 | . 2 Cave-ins Triggered . | . . Exploration Rate (%) 23 | 8 38 Regions Visited 1 Branch Regions . Pre-discovered Areas . | . . Known Exits Taken . | . . Unknown Exits Taken 1 | 1 . Scrap Searched . | . . Spaces Dug . | . . Terrain Destroyed 46 | . 46 Melee . | . . Projectile . | . . AOE 46 | . 46 Actions | -11 -10 --------- Run | Scr Mat Total 523 | 149 374 Wait 4 | 1 3 Move 392 | 130 262 Hop 2 | . 2 Pick Up 14 | 3 11 Fast Attach 12 | 5 7 Attach 7 | . 7 Detach . | . . Swap 9 | . 9 Drop 4 | . 4 Fire 76 | 10 66 Melee . | . . Ram 3 | . 3 Kick . | . . Crush . | . . Escape Stasis . | . . Rewire . | . . Trap . | . . Miscellaneous . | . . Route ------- -11/Scrapyard -10/Materials (discovered 1 exit: [*Mat]) History --------- Turn | Location | Event 2 | -11/Scrapyard | Met Revision 17 110 | -11/Scrapyard | Discovered new exit (range 8) 140 | -11/Scrapyard | Entered Materials 286 | -10/Materials | Core integrity fell below 50% 312 | -10/Materials | Lost 8 parts (1p2n1u4w) 366 | -10/Materials | Discovered new exit (range 13) 501 | -10/Materials | Core integrity fell below 20% 530 | -10/Materials | Lost 3 parts (1n2w) 713 | -10/Materials | Destroyed by G-34 Mercenary with Small Laser Last Messages --------------- 00509_ R-06 Scavenger collects Lgt. Ion Engine. 00513_ S-10 Pest destroyed. 00517_ R-06 Scavenger collects Lgt. Assault Rifle. 00520_ S-10 Pest destroyed. 00521_ R-06 Scavenger collects Flight Unit. 00534_ K-01 Serf collects debris. 00542_ System corrupted: Energy discharge (-43). 00544_ K-01 Serf collects debris. 00548_ Acquired 10 matter. 00548_ K-01 Serf collects debris. 00575_ K-01 Serf cleans the Terminal. 00583_ K-01 Serf collects debris. 00594_ K-01 Serf cleans the Material Compactor. 00606_ Acquired 10 matter. 00613_ Acquired 7 matter. 00615_ K-01 Serf cleans the Terminal. 00634_ =TVK0EAAVD16LZX& |GL/=CXP 00682_ W-16 Scout sends out distress signal. 00711_ System corrupted: Lgt. Assault Rifle targeting data glitched. [Achievement: First Step to Greatness] Map ----- +----------------------------------------------------+ | ????????????????????????????????????????????????? | | ????????????????????????????????????????????????? | | ????????????????????????????????????????????????? | | ????????????????????????????????????????????????? | | ????????????#???????????????????????????????????? | | ????????????# ??????????????????????????????????? | | ????????????# ?????????????????????????????????? | | ?????????? # ?????????????????????????????????? | | ??????????? # ????????????????????????????????? | | ????????????+ ???????????????# # # ## | | ????????????# ################ # """"""" # ## | | ????????????# # # # """"""" + + | | ????????????# # """ # # """"""" # # | | ????????????# # """"" # # """"""" ### # | | ????????????+ # """"" # # """"""" #?# # | | ????????????# %/ """"" # # #?# # | | ????????????# # """ # ###+######### # | | ????????????## # # #?# #???#"""# # | | ?????????????# # "T" # ### #####"Y"# ## | | ?????????????# #####+##### | | ?????????????# #???# ##### | | ?????????????# #???# ^ """ | | ?????????????# #???#### ##### ^ """ | | ?????????????# ########+##### """% | | ?????????????# # # "T" | | ?????????????# g @ u # %%# | | ?????????????# r# + % # | | ?????????????# ## # ###+## | | ?????????????# ## # # | | ?????????????+ ############### # | | ?????????????# ??????????????# # | | ?????????????# ??????????????# %# " | | ?????????????# ##+???##############+## # "" | | ?????????????# ?????? ## # # "" | | ?????????????# ?????? ##= # # """ | | ?????????????# ???????" ## # +% "" | | ?????????????# ???????" ## # # """ | | ?????????????# ????????" ## ! # # """ | | ??????????????????????? #########+##### # """ | | ??????????????????????? #??????# !!! # # " | | ????????????????????????????????# !!! # # | | ????????????????????????????????# !!! + ###### | | ????????????????????????????????# # #????? | | ????????????????????????????????#! # #????? | | ????????????????????????????????# # #????? | | ????????????????????????????????######## #????? | | ???????????????????????????????????????# ?????? | | ???????????????????????????????????????# < ?????? | | ???????????????????????????????????????# ?????? | | ???????????????????????????????????????####?????? | +----------------------------------------------------+ Best States ------------- Heat Dissipation 25 Energy Generation 10 Energy Capacity 125 Matter Stores 300 Matter Capacity 350 Sight Range 16 Terrain Scan Range 14 Terrain Scan Density 10 Core Shielding 20 Evasion (%) 62 Item Schematics ----------------- None Robot Schematics ------------------ None Fabricated ------------ Nothing Alien Tech Used ----------------- None Achievements -------------- First Step to Greatness Fist Fight Hey, That's Mine! Storm Trooper Uninvited Guest Challenges ------------ None Game ------ Seed CoolingVortexMembrane Manual? 0 Play Time 00:30:19 Cumulative 0.9 hours Start 2020.04.12 @ 22:27:36 End 2020.04.12 @ 23:00:50 Sessions 1 Manual Loads 0 Difficulty Rogue Special Mode None Game No. 1 Rogue 1 Adventurer 0 Explorer 0 Win Type - Total 0 Types 0/0/0/0/0/0/0 Lore% 0 Gallery% 1 Achievement% 1 Wizard Run 0 Options --------- ASCII 1 Keyboard 0 Movement Arrows Keybinds 0 Fullscreen 1 Font 24/Crisp Map View 76x50 Tactical HUD 1 Map Filters NONE Filters NONE Steam 1 RUN: a5e126ec-0c99-4504-befb-2e1e6f62019f